Cogmind - Beta 9.4 @@@ ROGUE MODE // 2020.01.20 @ 00:07:06 Player: K.Ioz Result: Destroyed by Y-45 Defender with Beam Rifle Performance ------------- Evolutions (1) 500 Regions Visited (3) 600 Robots Destroyed (52) 260 Value Destroyed (1233) 1233 Prototype IDs (0) 0 Alien Tech Used (0) 0 Bonus (0) 0 TOTAL SCORE: 2593 Bonus ------- None Cogmind --------- Core Integrity 0/400 Matter 450/450 Energy 100/100 System Corruption 0% Temperature Cool (9) Movement Core (600) Ox11 Location -9/Materials Parts ------- > --- POWER (1) -------- (None) > --- PROPULSION (4) --- (None) > --- UTILITY (2) ------ High-capacity Storage Unit Large Matter Pod > --- WEAPON (2) ------- (None) > --- INVENTORY (12) --- Ion Engine Disposable Heat Sink Improved Signal Interpreter Improved Weapon Shielding Light Armor Plating Small Laser Small Laser Assault Rifle Light Assault Rifle Heavy Assault Rifle Assault Cannon Assault Cannon Peak State ------------ > --- POWER ------------ Ion Engine > --- PROPULSION ------- Improved Aluminum Leg Improved Aluminum Leg Improved Aluminum Leg Improved Aluminum Leg > --- UTILITY ---------- High-capacity Storage Unit Improved Weapon Shielding > --- WEAPON ----------- Light Assault Rifle Assault Cannon > --- INVENTORY -------- Heat Sink Signal Interpreter Assault Rifle Light Assault Rifle Heavy Assault Rifle Light Cannon Assault Cannon Assault Cannon Rocket Launcher [Rating: 18] Favorites ----------- Power Ion Engine Engine Ion Engine Propulsion Improved Aluminum Leg Leg Improved Aluminum Leg Utility High-capacity Storage Unit Device Heat Sink Storage High-capacity Storage Unit Protection Improved Weapon Shielding Weapon Light Assault Rifle Energy Gun Medium Laser Ballistic Gun Light Assault Rifle Ballistic Cannon Assault Cannon Launcher Rocket Launcher Build | -11 -10 -10 -9 ------- Run | Scr Mat Min Mat Slots Evolved 2 | . . . 2 Power . | . . . . Propulsion 2 | . . . 2 Utility . | . . . . Weapon . | . . . . Parts Attached 41 | 6 16 1 18 Power 5 | 1 2 . 2 Engine 5 | 1 2 . 2 Core . | . . . . Reactor . | . . . . Propulsion 11 | 2 4 . 5 Treads . | . . . . Leg 11 | 2 4 . 5 Wheel . | . . . . Hover . | . . . . Flight . | . . . . Utility 10 | 1 6 . 3 Device 2 | . 2 . . Storage 6 | 1 4 . 1 Processor . | . . . . Hackware . | . . . . Protection 2 | . . . 2 Artifact . | . . . . Weapon 15 | 2 4 1 8 Energy Gun 2 | 1 1 . . Energy Cannon . | . . . . Ballistic Gun 7 | 1 2 1 3 Ballistic Cannon 4 | . 1 . 3 Launcher 2 | . . . 2 Special Weapon . | . . . . Impact Weapon . | . . . . Slashing Weapon . | . . . . Piercing Weapon . | . . . . Special Melee Weapon . | . . . . Unidentified Prototypes . | . . . . Parts Lost 17 | . 1 . 16 Power 2 | . . . 2 Propulsion 7 | . . . 7 Utility 2 | . . . 2 Weapon 6 | . 1 . 5 Highest Loss Streak 5 | . 1 . 5 Average Slot Usage (%) 89 | . 99 100 78 Engine 11 | . 14 14 9 Leg 27 | . 28 28 27 Storage 22 | . 25 28 18 Protection 1 | . . . 3 Energy Gun 4 | . 9 . . Ballistic Gun 14 | . 18 28 8 Ballistic Cannon 5 | . . . 11 Naked Turns . | . . . . Heaviest Build 50 | 13 42 42 50 Greatest Support 52 | 20 26 26 52 Greatest Overweight (x) 12 | 1 1 1 12 Average Overweight (x) . | . . 1 1 Largest Inventory Capacity 12 | 6 12 12 12 Average Capacity 9 | 4 7 12 12 Most Carried 12 | 1 6 7 12 Average Carried 7 | . 5 6 10 Final Capacity 12 | 6 12 12 12 Final Carried 12 | 1 6 7 12 Class Distribution -------------------- 91% | Mutant 8% | Scavenger-Mutant Dominant Class ---------------- Mutant | -10/Materials Mutant | -10/Mines Mutant | -9/Materials Resources | -11 -10 -10 -9 ----------- Run | Scr Mat Min Mat Matter Collected 1661 | 199 560 21 881 Remotely . | . . . . Salvage Created 1182 | . 510 40 632 Parts 91 | . 39 6 46 Haulers Intercepted 1 | . . . 1 Recyclers Shooed . | . . . . Parts Field Recycled . | . . . . Retrieved Matter . | . . . . Parts Self-Destructed . | . . . . Prevented . | . . . . Kills | -11 -10 -10 -9 ------- Run | Scr Mat Min Mat Combat Hostiles Destroyed 40 | . 15 3 22 Guns 24 | . 14 3 7 Cannons 13 | . 1 . 12 AOE 3 | . . . 3 Classes Destroyed 9 | . 4 . 5 Worker 4 | . 2 . 2 Builder 1 | . . . 1 Tunneler 1 | . . . 1 Hauler 1 | . . . 1 Watcher 5 | . 2 . 3 Swarmer 16 | . 6 3 7 Grunt 18 | . 9 . 9 Duelist 2 | . . . 2 Sentry 4 | . . . 4 Best Kill Streak 8 | . 5 3 8 Combat Bots Only 7 | . 4 3 7 Max Kills in Single Turn 2 | . 2 2 2 Gunslinging 1 | . . 1 . Exploded 1 | . . . 1 Melee . | . . . . Uniques/NPCs Destroyed . | . . . . Combat | -11 -10 -10 -9 -------- Run | Scr Mat Min Mat Damage Taken 2624 | 1 617 15 1991 Core 505 | . 96 . 409 Absorbed by Shields . | . . . . Core Remaining (%) 80 | 100 . 61 . Volleys Fired 179 | . 61 2 116 Largest 2 | . 2 2 2 Hottest 79 | . 70 40 79 Shots Fired 318 | . 122 4 192 Gun 216 | . 117 4 95 Cannon 89 | . 5 . 84 Launcher 13 | . . . 13 Special . | . . . . Kinetic 267 | . 84 4 179 Thermal 38 | . 38 . . Explosive 13 | . . . 13 Electromagnetic . | . . . . Robot Hit Streak 19 | . 12 5 19 Robot Miss Streak 4 | . 3 . 4 Penetration Max . | . . . . Secondary Targets 4 | . 3 1 . Max Gunslinging Chain 1 | . 1 1 . Shots Hit Robots 208 | . 76 4 128 Core Hits 85 | 1 30 4 50 Critical Hits 2 | . 1 . 1 Critical Kills 1 | . 1 . . Critical Parts Destroyed 1 | . . . 1 Melee Attacks . | . . . . Impact . | . . . . Slashing . | . . . . Piercing . | . . . . Sneak Attacks . | . . . . Combat Hostiles . | . . . . Follow-up Attacks . | . . . . Damage Inflicted 3326 | 2 900 41 2383 Guns 1461 | . 831 41 589 Cannons 1296 | . 68 . 1228 Explosions 556 | . . . 556 Melee . | . . . . Ramming 13 | 2 1 . 10 Kinetic 2476 | . 618 41 1817 Thermal 281 | . 281 . . Explosive 556 | . . . 556 Electromagnetic . | . . . . Impact . | . . . . Slashing . | . . . . Piercing . | . . . . Highest Corruption . | . . . . Average Corruption . | . . . . Corruption Purged . | . . . . Overload Shots . | . . . . Overflow Damage 70 | . . . 70 Projectiles 42 | . . . 42 Explosions 28 | . . . 28 Melee . | . . . . Knockbacks 12 | . . . 12 Impact . | . . . . Kinetic 10 | . . . 10 Secondary 2 | . . . 2 Self-Inflicted Damage 36 | 1 . . 35 Shots 1 | . . . 1 Rammed 4 | 1 1 . 2 Targets Rammed 5 | 1 2 . 2 Kicked 1 | . 1 . . Crushed . | . . . . Highest Temperature 122 | . 122 . 88 Average Temperature 31 | . 45 . 25 Received Heat Transfer 828 | . 288 . 540 Siege Activations . | . . . . Robots Corrupted . | . . . . Combat Hostiles . | . . . . Parts Fried . | . . . . Impact Corruptions . | . . . . Robots Melted . | . . . . Combat Hostiles . | . . . . Parts Melted . | . . . . Heat Transferred 709 | . 709 . . Parts Sabotaged . | . . . . Parts Stolen . | . . . . Parts Stripped . | . . . . Power Chain Reactions . | . . . . Missiles Intercepted . | . . . . Alert | -11 -10 -10 -9 ------- Run | Scr Mat Min Mat Peak Influence 241 | . 241 116 216 Average Influence 71 | . 43 115 99 Maximum Alert Level 1 | . 1 . 1 Low Security (%) 96 | 100 96 100 96 Level 1 3 | . 3 . 3 Level 2 . | . . . . Level 3 . | . . . . Level 4 . | . . . . Level 5 . | . . . . High Security . | . . . . Max Security . | . . . . Squads Dispatched 3 | . 3 . . Investigation 1 | . 1 . . Extermination . | . . . . Reinforcement 2 | . 2 . . Assault . | . . . . Garrison . | . . . . Intercept . | . . . . Construction Impeded . | . . . . Haulers Reinforced . | . . . . Stealth | -11 -10 -10 -9 --------- Run | Scr Mat Min Mat Distress Signals 2 | . 1 . 1 Communications Jammed . | . . . . Distress Signals . | . . . . Times Spotted 68 | . 30 1 37 Peak Tracking Total 6 | . 5 1 6 Tactical Retreats 7 | . 4 . 3 Traps | -11 -10 -10 -9 ------- Run | Scr Mat Min Mat Traps Triggered . | . . . . Indirectly . | . . . . Trap Hack Attempts . | . . . . Triggered . | . . . . Disarmed . | . . . . Reprogrammed 6 | . 6 . . Reused 1 | . 1 . . Traps Extracted . | . . . . Installed . | . . . . Triggered 1 | . 1 . . Machines | -11 -10 -10 -9 ---------- Run | Scr Mat Min Mat Machines Disabled 5 | . . . 5 Max in Single Turn 1 | . . . 1 Machines Sabotaged . | . . . . Garrisons Compromised . | . . . . Overloaded Fab Kills . | . . . . Fab Network Shutdowns . | . . . . Hacking | -11 -10 -10 -9 --------- Run | Scr Mat Min Mat Machines Accessed 8 | . 4 . 4 Terminals 7 | . 4 . 3 Fabricators . | . . . . Repair Stations . | . . . . Recycling Units . | . . . . Scanalyzers 1 | . . . 1 Garrison Access . | . . . . Total Hacks 28 | . 15 . 13 Successful 17 | . 8 . 9 Failed 11 | . 7 . 4 Catastrophic 4 | . 2 . 2 Database Lockouts . | . . . . Manual 6 | . 4 . 2 Terminals 26 | . 15 . 11 Fabricators . | . . . . Repair Stations . | . . . . Recycling Units . | . . . . Scanalyzers 2 | . . . 2 Garrison Access . | . . . . Terminal Hacks 15 | . 8 . 7 Emergency Access Points 1 | . . . 1 Alert Level 1 | . 1 . . Unreport Threat 3 | . 2 . 1 Locate Traps 5 | . 3 . 2 Reprogram Traps 1 | . 1 . . Patrol Status 2 | . 1 . 1 Hauler Manifests 1 | . . . 1 Zone Layout 1 | . . . 1 Fabricator Hacks . | . . . . Repair Station Hacks . | . . . . Recycling Unit Hacks . | . . . . Scanalyzer 2 | . . . 2 Insert Component 1 | . . . 1 Analyze 1 | . . . 1 Garrison Access Hacks . | . . . . Unauthorized Hacks . | . . . . Terminals . | . . . . Fabricators . | . . . . Repair Stations . | . . . . Recycling Units . | . . . . Scanalyzers . | . . . . Garrison Access . | . . . . Data Cores Recovered . | . . . . Used . | . . . . Hacking Detections 7 | . 4 . 3 Full Trace Events 1 | . . . 1 Feedback Events . | . . . . Feedback Blocked . | . . . . Robot Schematics Acquired . | . . . . Robots Built . | . . . . Matter . | . . . . Time . | . . . . Total Robot Build Rating . | . . . . Part Schematics Acquired 1 | . . . 1 Parts Built . | . . . . Matter . | . . . . Time . | . . . . Total Part Build Rating . | . . . . Parts Repaired . | . . . . Time . | . . . . Parts Recycled . | . . . . Recycled Matter . | . . . . Retrieved Matter . | . . . . Retrieved Components . | . . . . Parts Scanalyzed 1 | . . . 1 Part Schematics Acquired 1 | . . . 1 Parts Damaged . | . . . . Bothacking | -11 -10 -10 -9 ------------ Run | Scr Mat Min Mat Used RIF Installer . | . . . . Robots Hacked . | . . . . Non-combat . | . . . . Combat . | . . . . Robot Hacks Applied . | . . . . Relay Couplers Released . | . . . . Robots Rewired . | . . . . Allies Hacked . | . . . . Hacks Repelled . | . . . . Allies | -11 -10 -10 -9 -------- Run | Scr Mat Min Mat Total Allies . | . . . . Largest Group . | . . . . Highest-Rated Group . | . . . . Highest-Rated Ally . | . . . . Total Orders . | . . . . Ally Attacks . | . . . . Total Damage . | . . . . Kills . | . . . . Allies Corrupted . | . . . . Allies Melted . | . . . . Intel | -11 -10 -10 -9 ------- Run | Scr Mat Min Mat Robot Analysis Total . | . . . . Derelict Logs Recovered 2 | . . 2 . Drone Launches . | . . . . Drone Recoveries . | . . . . Exploration | -11 -10 -10 -9 ------------- Run | Scr Mat Min Mat Turns Passed 3281 | 106 1508 156 1511 Spaces Moved 1632 | 90 759 94 689 Core 37 | 34 . . 3 Treads . | . . . . Legs 1595 | 56 759 94 686 Wheels . | . . . . Hover . | . . . . Flight . | . . . . Fastest Speed 50 | 50 120 150 120 Average Speed 139 | 100 124 150 160 Slowest Speed 650 | 120 150 150 650 Overloaded Moves . | . . . . Propulsion Burnouts . | . . . . Robots Hopped . | . . . . Cave-ins Triggered . | . . . . Exploration Rate (%) 34 | 3 78 23 32 Regions Visited 3 Branch Regions 1 Pre-discovered Areas . | . . . . Known Exits Taken . | . . . . Unknown Exits Taken 3 | 1 1 1 . Scrap Searched . | . . . . Spaces Dug 1 | . . . 1 Terrain Destroyed 64 | . . . 64 Melee . | . . . . Projectile 10 | . . . 10 AOE 54 | . . . 54 Actions | -11 -10 -10 -9 --------- Run | Scr Mat Min Mat Total 2327 | 102 1206 105 914 Wait 433 | 5 346 7 75 Move 1629 | 89 758 93 689 Hop . | . . . . Pick Up 23 | 1 10 1 11 Fast Attach 15 | 6 3 . 6 Attach 9 | . 3 . 6 Detach 2 | . 1 . 1 Swap 17 | . 10 1 6 Drop 15 | . 12 1 2 Fire 179 | . 61 2 116 Melee . | . . . . Ram . | . . . . Kick 5 | 1 2 . 2 Crush . | . . . . Escape Stasis . | . . . . Rewire . | . . . . Trap . | . . . . Miscellaneous . | . . . . Route ------- -11/Scrapyard -10/Materials (discovered 2 exits: [*Min x2]) -10/Mines -9/Materials (discovered 1 exit: [*Min]) History --------- Turn | Location | Event 4 | -11/Scrapyard | Discovered new exit (range 16) 107 | -11/Scrapyard | Entered Materials 276 | -10/Materials | Discovered new exit (range 9) 311 | -10/Materials | Build established: Mutant 720 | -10/Materials | Discovered new exit (range 14) 1615 | -10/Materials | Entered Mines 1699 | -10/Mines | Learned 2 Materials zone layouts 1722 | -10/Mines | Assisted by bots powering up and referring to "LRC-V3" 1763 | -10/Mines | Discovered new exit (range 5) 1771 | -10/Mines | Entered Materials 1771 | -9/Materials | Evolved 2 slots: Propulsion x2 2348 | -9/Materials | Discovered new exit (range 10) 2479 | -9/Materials | Core integrity fell below 50% 2517 | -9/Materials | Destroyed 7 combat bots 2517 | -9/Materials | Lost 5 parts (1p2n2w) 3070 | -9/Materials | Core integrity fell below 20% 3113 | -9/Materials | Lost 4 parts (1p2n1w) 3282 | -9/Materials | Destroyed by Y-45 Defender with Beam Rifle Last Messages --------------- 03077_ Destroyed Imp. Aluminum Leg. 03077_ L-31 Rogue destroyed. 03080_ Destroyed Heat Sink. 03080_ G-34 Mercenary knocked back. 03082_ Assault Cannon destroyed. 03083_ G-34 Mercenary knocked back. 03091_ G-34 Mercenary destroyed. 03095_ Acquired 16 matter. 03095_ R-06 Scavenger collects Sml. Laser. 03101_ Acquired 43 matter. 03138_ K-01 Serf cleans the Machine. 03195_ K-01 Serf collects debris. 03204_ K-01 Serf cleans the Material Compactor. 03264_ Aluminum Leg destroyed. 03267_ Lgt. Cannon destroyed. 03267_ K-01 Serf destroyed. 03269_ K-01 Serf collects debris. 03275_ R-06 Scavenger collects Lgt. Ion Engine. 03276_ K-01 Serf collects debris. 03279_ R-06 Scavenger collects Wheel. Map ----- +----------------------------------------------------+ | ????????? | | ????????? | | ????????? ####### # | | #####?????????+#####???# # | | ## ##################????????????? #???# # | | ## ##########????????????????????? #???# # | | # # #?????????????????????"""" #???# # | | # #""" "" #?????????????????????"""" #???# # | | # #""" T" ##########????????????"""" #???# # | | #^^^#""" "" # #????????????"""" #???# # | | #^^^/ # """ #????????????"""" #???# # | | # #""" # """ #???????????? #???# # | | # #""" !# """ #????????????######???# # | | # #" " # #???????????????# #???# # | | # # # """ #???????????????# #???# # | | # #####+#### """ #?????####???########## # | | # + ## """ #????? #??? # | | # # ## ###### #??? # | | ## # ########+## ###? # | | #########?# r ## + | | ########### % + # | | ##""!"!""## #? # | | ## ## "!"!" ## ##### ######? # # | | # ## ## #???## ##?????? # # | | # #????# #???????########## # | | + < #????#@r #????????????????????? | | # #????# #????????????????????? | | ### # ##+######?# %#????????????????????? | | # # ######### ## Y!!#???????????????????? | | # # + """ ## ??????????????????? | | ###+########## """"" ## k ????????????????? | | # #??# """"" ## k ???????????????? | | # #??# """"" ## ##### ?????????????? | | ## #??# """ ########????? ????????????? | | ?# #??# #?????????????? ???????????? | | ############??# [ #??????????????????????????? | | #?????????????# #??????????????????????????? | | #?????????????# #??????????????????????????? | | #?????????????# #??????????????????????????? | | #?????????????### #####??????????????????????????? | | #???????????????###??????????????????????????????? | | #????????????????????????????????????????????????? | | #????????????????????????????????????????????????? | | ?????????????????????????????????????????????????? | | ?????????????????????????????????????????????????? | | ?????????????????????????????????????????????????? | | ?????????????????????????????????????????????????? | | ?????????????????????????????????????????????????? | | ?????????????????????????????????????????????????? | | ?????????????????????????????????????????????????? | +----------------------------------------------------+ Best States ------------- Heat Dissipation 35 Energy Generation 12 Energy Capacity 265 Matter Stores 450 Matter Capacity 450 Sight Range 16 Terrain Scan Density 10 Armor Coverage 150 Weapon Shielding 66 Evasion (%) 50 Item Schematics ----------------- Lgt. Cannon | -9/Materials | Scanalyzed Robot Schematics ------------------ None Fabricated ------------ Nothing Alien Tech Used ----------------- None Achievements -------------- None Challenges ------------ None Game ------ Seed DataStoragePit Manual? 0 Play Time 00:40:11 Cumulative 86.0 hours Start 2020.01.19 @ 23:27:14 End 2020.01.20 @ 00:07:06 Sessions 1 Manual Loads 0 Difficulty Rogue Special Mode None Game No. 65 Rogue 53 Adventurer 0 Explorer 12 Win Type - Total 1 Types 1/0/0/0/0/0/0 Lore% 44 Gallery% 49 Achievement% 41 Wizard Run 0 Options --------- ASCII 1 Keyboard 1 Movement Vi Keybinds 0 Fullscreen 1 Font 18/CogWide Map View 76x50 Tactical HUD 1 Map Filters NONE Filters LOW_CONTRAST(47,30,31)|SHIFT_HUE(1) Steam 1 RUN: d915f797-d10d-4dc6-bbce-658b3503f328